fUSD/lending_fUSD_20241215
["ID","MTS","AMOUNT","RATE_DAILY","PERIOD"]
[345449719,1734264649255,-500.0,0.00019875,3]
[345449720,1734264649266,-500.0,0.00019875,3]
[345449721,1734264649276,-500.0,0.00019875,3]
[345449722,1734264649286,-500.0,0.00019875,3]
[345449723,1734264649296,-500.0,0.00019875,3]
[345449724,1734264649305,-504.32064255,0.00019875,3]
[345449725,1734264649316,-500.0,0.00019875,3]
[345449726,1734264649330,-500.0,0.00019875,3]
[345449727,1734264649340,-501.48064352,0.00019875,3]
[345449728,1734264649350,-500.0,0.00019875,3]
[345449729,1734264649360,-500.0,0.00019875,3]
[345449730,1734264649372,-500.0,0.00019875,3]
[345449731,1734264649383,-500.0,0.00019875,3]
[345449732,1734264649392,-500.0,0.00019875,3]
[345449733,1734264649403,-500.0,0.00019875,3]
[345449734,1734264649415,-2092.55,0.00019875,3]
[345449735,1734264649425,-885.02,0.00019875,3]
[345449736,1734264649435,-500.0,0.00019875,3]
[345449737,1734264649445,-431.32820785,0.00019875,3]
[345449738,1734264649455,-504.13518614,0.00019875,3]
[345449739,1734264649465,-467.24437579,0.00019875,3]
[345449740,1734264649475,-500.0,0.00019875,3]
[345449741,1734264649485,-500.0,0.00019875,3]
[345449742,1734264649495,-508.56550408,0.00019875,3]
[345449743,1734264649505,-515.86,0.00019875,3]
[345449744,1734264649516,-503.82903124,0.00019875,3]
[345449745,1734264649526,-504.63282295,0.00019875,3]
[345449746,1734264649536,-507.71671029,0.00019875,3]
[345449747,1734264649546,-500.0,0.00019875,3]
[345449748,1734264649556,-507.60424542,0.00019875,3]
[345449749,1734264649566,-425.48566198,0.00019875,3]
[345449750,1734264649576,-505.77561848,0.00019875,3]
[345449751,1734264649586,-533.77,0.00019875,3]
[345449752,1734264649595,-500.0,0.00019875,3]
[345449753,1734264649606,-955.93,0.00019875,3]
[345449754,1734264649616,-500.0,0.00019875,3]
[345449755,1734264649626,-501.42557308,0.00019875,3]
[345449756,1734264649636,-688.43,0.00019875,3]
[345449757,1734264649647,-535.27,0.00019875,3]
[345449758,1734264649658,-500.0,0.00019875,3]
[345449759,1734264649668,-629.59,0.00019875,3]
[345449760,1734264649677,-500.0,0.00019875,3]
[345449761,1734264649688,-700.58,0.00019875,3]
[345449762,1734264649699,-843.51,0.00019875,3]
[345449763,1734264649709,-500.0,0.00019875,3]
[345449764,1734264649718,-1357.31,0.00019875,3]
[345449765,1734264649728,-504.4189002,0.00019875,3]
[345449766,1734264649738,-503.18296287,0.00019875,3]
[345449767,1734264649747,-500.0,0.00019875,3]
[345449768,1734264649757,-787.31,0.00019875,3]
[345449769,1734264649767,-500.0,0.00019875,3]
[345449770,1734264649777,-500.0,0.00019875,3]
[345449771,1734264649787,-500.0,0.00019875,3]
[345449772,1734264649796,-500.0,0.00019875,3]
[345449773,1734264649806,-500.0,0.00019875,3]
[345449774,1734264649816,-500.0,0.00019875,3]
[345449775,1734264649826,-500.0,0.00019875,3]
[345449776,1734264649836,-500.0,0.00019875,3]
[345449777,1734264649845,-500.0,0.00019875,3]
[345449778,1734264649855,-1446.8,0.00019875,3]
[345449779,1734264649864,-500.0,0.00019875,3]
[345449780,1734264649874,-334.28475906,0.00019875,3]
[345449781,1734264649884,-500.0,0.00019875,3]
[345449782,1734264649894,-500.0,0.00019875,3]
[345449783,1734264649904,-504.33825544,0.00019875,3]
[345449784,1734264649913,-500.0,0.00019875,3]
[345449785,1734264649923,-500.0,0.00019875,3]
[345449786,1734264649933,-500.0,0.00019875,3]
[345449787,1734264649943,-3406.0,0.00019875,3]
[345449788,1734264649953,-500.0,0.00019875,3]
[345449789,1734264649962,-500.0,0.00019875,3]
[345449790,1734264649972,-500.0,0.00019875,3]
[345449791,1734264649982,-507.43484694,0.00019875,3]
[345449792,1734264650142,-500.0,0.00019875,3]
[345449793,1734264650152,-565.17,0.00019875,3]
[345449794,1734264650162,-500.0,0.00019875,3]
[345449795,1734264650172,-500.0,0.00019875,3]
[345449796,1734264650182,-500.0,0.00019875,3]
[345449797,1734264650191,-500.0,0.00019875,3]
[345449798,1734264650201,-500.0,0.00019875,3]
[345449799,1734264650210,-500.0,0.00019875,3]
[345449800,1734264650220,-500.0,0.00019875,3]
[345449801,1734264650230,-500.0,0.00019875,3]
[345449802,1734264650239,-500.0,0.00019875,3]
[345449803,1734264650248,-500.0,0.00019875,3]
[345449804,1734264650258,-870.03,0.00019875,3]
[345449805,1734264650268,-670.56,0.00019876,3]
[345449806,1734264650277,-500.0,0.00019876,3]
[345449807,1734264650286,-500.0,0.00019877,3]
[345449808,1734264650296,-500.0,0.00019877,3]
[345449809,1734264650306,-500.0,0.00019877,3]
[345449810,1734264650315,-500.0,0.00019877,3]
[345449811,1734264650327,-500.0,0.00019877,3]
[345449812,1734264650338,-500.0,0.00019877,3]
[345449813,1734264650347,-500.0,0.00019877,3]
[345449814,1734264650357,-486.27121618,0.00019877,3]
[345449815,1734264650367,-500.0,0.00019877,3]
[345449816,1734264650376,-500.0,0.00019877,3]
[345449817,1734264650385,-500.0,0.00019877,3]
[345449818,1734264650395,-500.0,0.00019877,3]
[345449819,1734264650405,-500.0,0.00019877,3]
[345449820,1734264650414,-407.27,0.00019877,3]
[345449821,1734264650424,-500.0,0.00019877,3]
[345449822,1734264650435,-500.0,0.00019877,3]
[345449823,1734264650445,-534.20501604,0.00019877,3]
[345449824,1734264650454,-547.2466926,0.00019877,3]
[345449825,1734264650464,-517.61314324,0.00019877,3]
[345449826,1734264650474,-500.0,0.00019877,3]
[345449827,1734264650483,-500.0,0.00019877,3]
[345449828,1734264650493,-500.0,0.00019877,3]
[345449829,1734264650502,-500.0,0.00019877,3]
[345449830,1734264650511,-489.99,0.00019877,3]
[345449831,1734264650522,-500.0,0.00019877,3]
[345449832,1734264650532,-500.0,0.00019877,3]
[345449833,1734264650543,-500.0,0.00019877,3]
[345449834,1734264650552,-500.0,0.00019877,3]
[345449835,1734264650562,-511.92161313,0.00019877,3]
[345449836,1734264650571,-500.0,0.00019877,3]
[345449837,1734264650580,-508.76751003,0.00019877,3]
[345449838,1734264650591,-500.0,0.00019877,3]
[345449839,1734264650600,-800.0,0.0001989,2]
[345449840,1734264650609,-500.0,0.00019892,3]
[345449841,1734264650619,-500.0,0.00019892,3]
[345449842,1734264650629,-616.38,0.00019892,3]
[345449843,1734264650638,-527.92,0.00019892,3]
[345449844,1734264650647,-5818.33,0.00019892,3]
[345449845,1734264650656,-500.0,0.00019892,3]
[345449846,1734264650666,-500.0,0.00019892,3]
[345449847,1734264650675,-1684.52,0.00019892,3]
[345449848,1734264650684,-814.19,0.00019892,3]
[345449849,1734264650694,-500.0,0.00019892,3]
[345449850,1734264650703,-500.0,0.00019892,3]
[345449851,1734264650712,-500.0,0.00019892,3]
[345449852,1734264650721,-500.0,0.00019892,3]
[345449853,1734264650731,-634.55,0.00019892,3]
[345449854,1734264650740,-500.0,0.00019892,3]
[345449855,1734264650749,-500.0,0.00019892,3]
[345449856,1734264650759,-500.0,0.00019892,3]
[345449857,1734264650768,-500.0,0.00019892,3]
[345449858,1734264650778,-755.33,0.00019892,3]
[345449859,1734264650787,-1139.23,0.00019892,3]
[345449860,1734264650796,-500.0,0.00019892,3]
[345449861,1734264650806,-1071.01,0.00019892,3]
[345449862,1734264650815,-907.33,0.00019892,3]
[345449863,1734264650825,-2708.43,0.00019892,3]
[345449864,1734264650834,-704.42,0.00019892,3]
[345449865,1734264650844,-670.64,0.00019892,3]
[345449866,1734264650853,-2242.04,0.00019892,3]
[345449867,1734264650862,-724.31,0.00019892,3]
[345449868,1734264650873,-500.0,0.00019892,3]
[345449869,1734264650882,-500.0,0.00019893,3]
[345449870,1734264650892,-500.0,0.00019893,3]
[345449871,1734264650901,-500.0,0.00019893,3]
[345449872,1734264650910,-551.57568536,0.00019893,3]
[345449873,1734264650919,-500.0,0.00019893,3]
[345449874,1734264650928,-500.0,0.00019893,3]
[345449875,1734264650937,-500.0,0.00019893,3]
[345449876,1734264650947,-359.32910467,0.00019893,3]
[345449877,1734264650957,-500.0,0.00019893,3]
[345449878,1734264650967,-500.0,0.00019893,3]
[345449879,1734264650976,-500.0,0.00019893,3]
[345449880,1734264650985,-500.0,0.00019893,3]
[345449881,1734264650995,-500.0,0.00019894,3]
[345449882,1734264651004,-500.0,0.00019894,3]
[345449883,1734264651014,-500.0,0.00019894,3]
[345449884,1734264651026,-511.43572281,0.00019894,3]
[345449885,1734264651036,-500.0,0.00019894,3]
[345449886,1734264651047,-500.0,0.00019894,3]
[345449887,1734264651058,-500.0,0.00019894,3]
[345449888,1734264651068,-500.0,0.00019894,3]
[345449889,1734264651077,-500.0,0.00019894,3]
[345449890,1734264651087,-500.0,0.00019894,3]
[345449891,1734264651096,-500.0,0.00019894,3]
[345449892,1734264651106,-500.0,0.00019894,3]
[345449893,1734264651116,-500.0,0.00019894,3]
[345449894,1734264651124,-500.0,0.00019894,3]
[345449895,1734264651134,-500.0,0.00019894,3]
[345449896,1734264651143,-500.0,0.00019894,3]
[345449897,1734264651153,-500.0,0.00019894,3]
[345449898,1734264651162,-533.83378727,0.00019894,3]
[345449899,1734264651172,-173.35633707,0.00019894,3]
[345449900,1734264651182,-500.0,0.00019894,3]
[345449901,1734264651192,-500.0,0.00019894,3]
[345449902,1734264651202,-500.0,0.00019894,3]
[345449903,1734264651211,-500.0,0.00019894,3]
[345449904,1734264651221,-1666.24382396,0.00019895,2]
[345449905,1734264651231,-1297.50129148,0.00019896,10]
[345449906,1734264651240,-520.43618284,0.00019897,3]
[345449907,1734264651251,-500.0,0.00019897,3]
[345449908,1734264651260,-500.0,0.00019897,3]
[345449909,1734264651271,-500.0,0.00019897,3]
[345449910,1734264651282,-500.0,0.00019897,3]
[345449911,1734264651291,-500.0,0.00019897,3]
[345449912,1734264651302,-500.0,0.00019897,3]
[345449913,1734264651312,-500.0,0.00019897,3]
[345449914,1734264651322,-398.60459283,0.00019897,3]
[345449915,1734264651337,-420.88653826,0.00019897,3]
[345449916,1734264651347,-500.0,0.00019897,3]
[345449917,1734264651357,-514.06720299,0.00019897,3]
[345449918,1734264651367,-493.0,0.00019897,3]
[345449919,1734264651376,-589.18,0.00019897,3]
[345449920,1734264651386,-500.0,0.00019897,3]
[345449921,1734264651395,-500.0,0.00019897,3]
[345449922,1734264651405,-500.0,0.00019897,3]
[345449923,1734264651416,-591.84,0.00019897,3]
[345449924,1734264651427,-500.0,0.00019897,3]
[345449925,1734264651436,-500.0,0.00019897,3]
[345449926,1734264651446,-500.0,0.00019897,3]
[345449927,1734264651456,-500.0,0.00019897,3]
[345449928,1734264651465,-500.0,0.00019897,3]
[345449929,1734264651475,-500.0,0.00019897,3]
[345449930,1734264651484,-500.0,0.00019897,3]
[345449931,1734264651494,-500.0,0.00019897,3]
[345449932,1734264651504,-500.0,0.00019897,3]
[345449933,1734264651513,-500.0,0.00019897,3]
[345449934,1734264651524,-500.0,0.00019897,3]
[345449935,1734264651534,-500.0,0.00019897,3]
[345449936,1734264651543,-500.0,0.00019897,3]
[345449937,1734264651553,-563.21,0.00019897,3]
[345449938,1734264651563,-500.0,0.00019897,3]
[345449939,1734264651572,-500.0,0.00019897,3]
[345449940,1734264651581,-500.0,0.00019897,3]
[345449941,1734264651591,-500.0,0.00019897,3]
[345449942,1734264651601,-500.0,0.00019897,3]
[345449943,1734264651611,-500.0,0.00019897,3]
[345449944,1734264651622,-500.0,0.00019897,3]
[345449945,1734264651631,-500.0,0.00019897,3]
[345449946,1734264651641,-500.0,0.00019897,3]
[345449947,1734264651650,-500.0,0.00019897,3]
[345449948,1734264651660,-1378.84,0.00019897,30]
[345449949,1734264651669,-500.0,0.00019897,3]
[345449950,1734264651679,-500.0,0.00019897,3]
[345449951,1734264651688,-500.0,0.00019897,3]
[345449952,1734264651697,-500.0,0.00019897,3]
[345449953,1734264651706,-588.23,0.00019897,3]
[345449954,1734264651716,-500.0,0.00019897,3]
[345449955,1734264651726,-501.46582697,0.00019897,3]
[345449956,1734264651735,-500.0,0.00019897,3]
[345449957,1734264651744,-500.0,0.00019897,3]
[345449958,1734264651753,-500.0,0.00019897,3]
[345449959,1734264651763,-500.0,0.00019897,3]
[345449960,1734264651774,-500.0,0.00019897,3]
[345449961,1734264651783,-545.45165209,0.00019897,3]
[345449962,1734264651793,-500.0,0.00019897,3]
[345449963,1734264651802,-500.0,0.00019897,3]
[345449964,1734264651811,-500.0,0.00019897,3]
[345449965,1734264651820,-500.0,0.00019897,3]
[345449966,1734264651829,-500.0,0.00019897,3]
[345449967,1734264651840,-500.0,0.00019897,3]
[345449968,1734264651849,-500.0,0.00019897,3]
[345449969,1734264651859,-500.0,0.00019897,3]
[345449970,1734264651869,-500.0,0.00019897,3]
[345449971,1734264651880,-509.91743499,0.00019897,3]
[345449972,1734264651889,-500.0,0.00019897,3]
[345449973,1734264651899,-500.0,0.00019897,3]
[345449974,1734264651908,-201.59,0.00019897,3]
[345449975,1734264651917,-500.0,0.00019897,3]
[345449976,1734264651926,-500.0,0.00019897,3]
[345449977,1734264651936,-500.0,0.00019897,3]
[345449978,1734264651946,-500.0,0.00019897,3]
[345449979,1734264651955,-500.0,0.00019897,3]
[345449980,1734264651965,-500.0,0.00019897,3]
[345449981,1734264651974,-500.0,0.00019897,3]
[345449982,1734264651983,-500.0,0.00019897,3]
[345449983,1734264651993,-500.0,0.00019897,3]
[345449984,1734264652002,-500.0,0.00019897,3]
[345449985,1734264652012,-500.0,0.00019897,3]
[345449986,1734264652023,-498.40570554,0.00019897,3]
[345449987,1734264652033,-361.34786422,0.00019897,3]
[345449988,1734264652042,-1192.803,0.00019898,2]
[345449989,1734264652052,-182.319,0.00019898,2]
[345449990,1734264652061,-670.56,0.00019898,3]
[345449991,1734264652071,-500.0,0.00019898,3]
[345449992,1734264652080,-500.0,0.00019899,3]
[345449993,1734264652089,-500.0,0.00019899,3]
[345449994,1734264652098,-500.0,0.00019899,3]
[345449995,1734264652108,-500.0,0.00019899,3]
[345449996,1734264652118,-500.0,0.00019899,3]
[345449997,1734264652127,-500.0,0.00019899,3]
[345449998,1734264652137,-500.0,0.00019899,3]
[345449999,1734264652147,-500.0,0.00019899,3]
[345450000,1734264652156,-500.0,0.00019899,3]
[345450001,1734264652166,-500.0,0.00019899,3]
[345450002,1734264652175,-500.0,0.00019899,3]
[345450003,1734264652185,-500.0,0.00019899,3]
[345450004,1734264652194,-500.0,0.00019899,3]
[345450005,1734264652203,-500.0,0.00019899,3]
[345450006,1734264652213,-500.0,0.00019899,3]
[345450007,1734264652223,-333.47,0.00019899,3]
[345450008,1734264652232,-500.0,0.00019899,3]
[345450009,1734264652241,-589.18,0.00019899,3]
[345450010,1734264652251,-616.15007139,0.00019899,3]
[345450011,1734264652261,-557.6749566,0.00019899,3]
[345450012,1734264652273,-500.0,0.00019899,3]
[345450013,1734264652282,-500.0,0.00019899,3]
[345450014,1734264652291,-500.0,0.00019899,3]
[345450015,1734264652301,-500.0,0.00019899,3]
[345450016,1734264652310,-500.0,0.00019899,3]
[345450017,1734264652319,-514.65583459,0.00019899,3]
[345450018,1734264652332,-500.0,0.00019899,3]
[345450019,1734264652342,-500.0,0.00019899,3]
[345450020,1734264652350,-500.0,0.00019899,3]
[345450021,1734264652360,-500.0,0.00019899,3]
[345450022,1734264652371,-500.0,0.00019899,3]
[345450023,1734264652380,-500.0,0.00019899,3]
[345450024,1734264652389,-500.0,0.00019899,3]
[345450025,1734264652399,-500.0,0.00019899,3]
[345450026,1734264652410,-500.0,0.00019899,3]
[345450027,1734264652419,-500.0,0.00019899,3]
[345450028,1734264652429,-500.0,0.00019899,3]
[345450029,1734264652439,-500.0,0.00019899,3]
[345450030,1734264652448,-500.0,0.00019899,3]
[345450031,1734264652457,-563.21,0.00019899,3]
[345450032,1734264652467,-500.0,0.00019899,3]
[345450033,1734264652477,-500.0,0.00019899,3]
[345450034,1734264652486,-536.81,0.00019899,3]
[345450035,1734264652496,-500.0,0.00019899,3]
[345450036,1734264652505,-500.0,0.00019899,3]
[345450037,1734264652514,-500.0,0.00019899,3]
[345450038,1734264652526,-500.0,0.00019899,3]
[345450039,1734264652535,-500.0,0.00019899,3]
[345450040,1734264652545,-500.0,0.00019899,3]
[345450041,1734264652554,-500.0,0.00019899,3]
[345450042,1734264652564,-1378.84,0.00019899,30]
[345450043,1734264652574,-500.0,0.00019899,3]
[345450044,1734264652583,-500.0,0.00019899,3]
[345450045,1734264652593,-500.0,0.00019899,3]
[345450046,1734264652602,-500.0,0.00019899,3]
[345450047,1734264652611,-588.23,0.00019899,3]
[345450048,1734264652621,-500.0,0.00019899,3]
[345450049,1734264652630,-500.0,0.00019899,3]
[345450050,1734264652639,-500.0,0.00019899,3]
[345450051,1734264652649,-500.0,0.00019899,3]
[345450052,1734264652658,-500.0,0.00019899,3]
[345450053,1734264652668,-500.0,0.00019899,3]
[345450054,1734264652677,-500.0,0.00019899,3]
[345450055,1734264652687,-500.0,0.00019899,3]
[345450056,1734264652696,-500.0,0.00019899,3]
[345450057,1734264652707,-500.0,0.00019899,3]
[345450058,1734264652718,-500.0,0.00019899,3]
[345450059,1734264652727,-500.0,0.00019899,3]
[345450060,1734264652736,-500.0,0.00019899,3]
[345450061,1734264652746,-500.0,0.00019899,3]
[345450062,1734264652756,-561.62,0.00019899,3]
[345450063,1734264652765,-599.26,0.00019899,3]
[345450064,1734264652777,-500.0,0.00019899,3]
[345450065,1734264652786,-500.0,0.00019899,3]
[345450066,1734264652796,-500.0,0.00019899,3]
[345450067,1734264652805,-500.0,0.00019899,3]
[345450068,1734264652814,-500.0,0.00019899,3]
[345450069,1734264652823,-500.0,0.00019899,3]
[345450070,1734264652833,-500.0,0.00019899,3]
[345450071,1734264652842,-721.43,0.00019899,3]
[345450072,1734264652851,-500.0,0.00019899,3]
[345450073,1734264652861,-510.24703419,0.00019899,3]
[345450074,1734264652870,-500.0,0.00019899,3]
[345450075,1734264652879,-500.0,0.00019899,3]
[345450076,1734264652888,-500.0,0.00019899,3]
[345450077,1734264652898,-500.0,0.00019899,3]
[345450078,1734264652907,-500.0,0.00019899,3]
[345450079,1734264652916,-500.0,0.00019899,3]
[345450080,1734264652926,-550.7,0.00019899,3]
[345450081,1734264652935,-500.0,0.00019899,3]
[345450082,1734264652944,-500.0,0.00019899,3]
[345450083,1734264652953,-500.0,0.00019899,3]
[345450084,1734264652962,-500.0,0.00019899,3]
[345450085,1734264652971,-500.0,0.00019899,3]
[345450086,1734264652980,-500.0,0.00019899,3]
[345450087,1734264652990,-500.0,0.00019899,3]
[345450088,1734264652999,-500.0,0.00019899,3]
[345450089,1734264653008,-500.0,0.00019899,3]
[345450090,1734264653017,-1031.691944,0.00019899,3]
[345450091,1734264653027,-500.0,0.00019899,3]
[345450092,1734264653036,-1699.345557,0.00019899,3]
[345450093,1734264653046,-500.0,0.00019899,3]
[345450094,1734264653055,-500.0,0.00019899,3]
[345450095,1734264653064,-969.84,0.00019899,3]
[345450096,1734264653074,-1930.79,0.00019899,3]
[345450097,1734264653084,-500.0,0.00019899,3]
[345450098,1734264653093,-500.0,0.00019899,3]
[345450099,1734264653103,-500.0,0.00019899,3]
[345450100,1734264653112,-500.0,0.00019899,3]
[345450101,1734264653121,-500.0,0.00019899,3]
[345450102,1734264653130,-500.0,0.00019899,3]
[345450103,1734264653139,-477.0,0.000199,7]
[345450104,1734264653149,-5159.17335413,0.000199,2]
[345450105,1734264653159,-200.8343169,0.000199,3]
[345450106,1734264653169,-17085.76315218,0.000199,2]
[345450107,1734264653178,-187.08957233,0.000199,2]
[345450108,1734264653188,-1122.11500656,0.000199,2]
[345450109,1734264653198,-200.30745684,0.000199,2]
[345450110,1734264653207,-601.9145064,0.0001997,2]
[345450111,1734264653217,-580.00703193,0.00019973,2]
[345450112,1734264653228,-500.0,0.00019994,3]
[345450113,1734264653238,-500.0,0.00019994,3]
[345450114,1734264653247,-616.38,0.00019994,3]
[345450115,1734264653257,-527.92,0.00019994,3]
[345450116,1734264653267,-5818.33,0.00019994,3]
[345450117,1734264653277,-362.39781625,0.00019994,3]
[345450118,1734264653287,-500.0,0.00019994,3]
[345450119,1734264653297,-1684.52,0.00019994,3]
[345450120,1734264653307,-814.19,0.00019994,3]
[345450121,1734264653317,-500.0,0.00019994,3]
[345450122,1734264653329,-500.0,0.00019994,3]
[345450123,1734264653339,-500.0,0.00019994,3]
[345450124,1734264653348,-500.0,0.00019994,3]
[345450125,1734264653358,-634.55,0.00019994,3]
[345450126,1734264653368,-500.0,0.00019994,3]
[345450127,1734264653379,-500.0,0.00019994,3]
[345450128,1734264653389,-500.0,0.00019994,3]
[345450129,1734264653398,-500.0,0.00019994,3]
[345450130,1734264653410,-755.33,0.00019994,3]
[345450131,1734264653419,-1139.23,0.00019994,3]
[345450132,1734264653429,-500.0,0.00019994,3]
[345450133,1734264653438,-1071.01,0.00019994,3]
[345450134,1734264653447,-907.33,0.00019994,3]
[345450135,1734264653457,-2708.43,0.00019994,3]
[345450136,1734264653466,-704.42,0.00019994,3]
[345450137,1734264653475,-670.64,0.00019994,3]
[345450138,1734264653484,-2242.04,0.00019994,3]
[345450139,1734264653494,-724.31,0.00019994,3]
[345450140,1734264653503,-500.0,0.00019994,3]
[345450141,1734264653513,-500.0,0.00019995,3]
[345450142,1734264653523,-1426.84,0.00019995,3]
[345450143,1734264653533,-506.34167848,0.00019995,3]
[345450144,1734264653542,-500.0,0.00019995,3]
[345450145,1734264653551,-500.0,0.00019995,3]
[345450146,1734264653561,-500.0,0.00019995,3]
[345450147,1734264653570,-500.0,0.00019995,3]
[345450148,1734264653580,-500.0,0.00019995,3]
[345450149,1734264653590,-500.0,0.00019995,3]
[345450150,1734264653599,-500.0,0.00019995,3]
[345450151,1734264653608,-234.9480942,0.00019995,3]
[345450152,1734264653618,-500.0,0.00019995,3]
[345450153,1734264653628,-500.0,0.00019995,3]
[345450154,1734264653637,-530.99806769,0.00019995,3]
[345450155,1734264653646,-170.84371968,0.00019995,3]
[345450156,1734264653655,-500.0,0.00019995,3]
[345450157,1734264653664,-500.0,0.00019995,3]
[345450158,1734264653674,-256.80001452,0.00019995,3]
[345450159,1734264653826,-500.0,0.00019995,3]
[345450160,1734264653836,-500.0,0.00019995,3]
[345450161,1734264653845,-500.0,0.00019995,3]
[345450162,1734264653854,-500.0,0.00019995,2]
[345450163,1734264653863,-500.0,0.00019995,3]
[345450164,1734264653873,-500.0,0.00019995,3]
[345450165,1734264653882,-500.0,0.00019995,3]
[345450166,1734264653891,-500.0,0.00019995,3]
[345450167,1734264653901,-500.0,0.00019995,3]
[345450168,1734264653910,-238.0657121,0.00019995,3]
[345450169,1734264653919,-199.0,0.00019995,3]
[345450170,1734264653929,-500.0,0.00019995,3]
[345450171,1734264653938,-500.0,0.00019995,3]
[345450172,1734264653947,-500.0,0.00019995,3]
[345450173,1734264653957,-500.0,0.00019995,3]
[345450174,1734264653966,-500.0,0.00019995,3]
[345450175,1734264653975,-500.0,0.00019995,3]
[345450176,1734264653985,-670.56,0.00019995,3]
[345450177,1734264653994,-500.0,0.00019995,3]
[345450178,1734264654003,-500.0,0.00019995,3]
[345450179,1734264654013,-413.09545961,0.00019995,3]
[345450180,1734264654023,-500.0,0.00019995,3]
[345450181,1734264654033,-500.0,0.00019995,3]
[345450182,1734264654043,-500.0,0.00019995,3]
[345450183,1734264654053,-500.0,0.00019995,3]
[345450184,1734264654063,-2092.55,0.00019995,3]
[345450185,1734264654072,-885.02,0.00019995,3]
[345450186,1734264654082,-500.0,0.00019995,3]
[345450187,1734264654102,-500.0,0.00019995,3]
[345450188,1734264654113,-500.0,0.00019995,3]
[345450189,1734264654123,-515.86,0.00019995,3]
[345450190,1734264654133,-500.0,0.00019995,3]
[345450191,1734264654144,-533.77,0.00019995,3]
[345450192,1734264654155,-500.0,0.00019995,3]
[345450193,1734264654165,-955.93,0.00019995,3]
[345450194,1734264654175,-500.0,0.00019995,3]
[345450195,1734264654184,-688.43,0.00019995,3]
[345450196,1734264654194,-535.27,0.00019995,3]
[345450197,1734264654204,-500.0,0.00019995,3]
[345450198,1734264654214,-629.59,0.00019995,3]
[345450199,1734264654224,-500.0,0.00019995,3]
[345450200,1734264654234,-700.58,0.00019995,3]
[345450201,1734264654244,-843.51,0.00019995,3]
[345450202,1734264654254,-507.53109812,0.00019995,3]
[345450203,1734264654264,-1357.31,0.00019995,3]
[345450204,1734264654275,-500.0,0.00019995,3]
[345450205,1734264654285,-787.31,0.00019995,3]
[345450206,1734264654295,-500.0,0.00019995,3]
[345450207,1734264654305,-500.0,0.00019995,3]
[345450208,1734264654315,-500.0,0.00019995,3]
[345450209,1734264654327,-500.0,0.00019995,3]
[345450210,1734264654338,-500.0,0.00019995,3]
[345450211,1734264654348,-500.0,0.00019995,3]
[345450212,1734264654359,-1446.8,0.00019995,3]
[345450213,1734264654370,-500.0,0.00019995,3]
[345450214,1734264654380,-500.0,0.00019995,3]
[345450215,1734264654390,-500.0,0.00019995,3]
[345450216,1734264654401,-500.0,0.00019995,3]
[345450217,1734264654410,-500.0,0.00019995,3]
[345450218,1734264654420,-500.0,0.00019995,3]